[Event "Early-Titled-Tuesday-Blitz-May-14-2024"]
[Site "Chess.com"]
[Date "2024.05.14"]
[Round "9"]
[White "ploxoi"]
[Black "LeoLV10"]
[Result "0-1"]
[WhiteElo "2344"]
[BlackElo "2517"]
[TimeControl "180+1"]
[EndTime "9:47:54 PDT"]
[Termination "LeoLV10 won by resignation"]

1. d4 {[%clk 0:03:00.9]} 1... Nf6 {[%clk 0:02:59.6]} 2. c4 {[%clk 0:03:00.6]}
2... e6 {[%clk 0:03:00.5]} 3. h3 {[%clk 0:03:00.5]} 3... c5 {[%clk 0:02:56.6]}
4. d5 {[%clk 0:02:56.9]} 4... exd5 {[%clk 0:02:56.9]} 5. cxd5 {[%clk 0:02:57.8]}
5... d6 {[%clk 0:02:57.5]} 6. Nc3 {[%clk 0:02:57.9]} 6... g6 {[%clk 0:02:57.7]}
7. e4 {[%clk 0:02:55.5]} 7... Bg7 {[%clk 0:02:58.2]} 8. Bd3 {[%clk 0:02:56]}
8... O-O {[%clk 0:02:58]} 9. Nf3 {[%clk 0:02:54.8]} 9... b5 {[%clk 0:02:58.6]}
10. O-O {[%clk 0:02:48.9]} 10... a6 {[%clk 0:02:50.7]} 11. Re1 {[%clk
0:02:47.3]} 11... Nbd7 {[%clk 0:02:47.3]} 12. a4 {[%clk 0:02:45.6]} 12... b4
{[%clk 0:02:44]} 13. Nb1 {[%clk 0:02:45.3]} 13... Ne8 {[%clk 0:02:40.4]} 14.
Nbd2 {[%clk 0:02:43.5]} 14... a5 {[%clk 0:02:24.6]} 15. Qc2 {[%clk 0:02:32.8]}
15... Nb6 {[%clk 0:02:16.1]} 16. Nc4 {[%clk 0:02:28.1]} 16... Nxc4 {[%clk
0:02:14]} 17. Bxc4 {[%clk 0:02:27.1]} 17... Nf6 {[%clk 0:02:04.9]} 18. Bg5
{[%clk 0:02:25.3]} 18... Qc7 {[%clk 0:02:02.1]} 19. Rad1 {[%clk 0:02:24.4]}
19... Nd7 {[%clk 0:02:01.5]} 20. Bf4 {[%clk 0:02:17]} 20... Re8 {[%clk
0:02:00.4]} 21. Bb5 {[%clk 0:02:16.1]} 21... Ba6 {[%clk 0:01:39]} 22. Bxa6
{[%clk 0:02:02.1]} 22... Rxa6 {[%clk 0:01:38.3]} 23. Nd2 {[%clk 0:02:03]} 23...
Be5 {[%clk 0:01:32.3]} 24. Bxe5 {[%clk 0:01:54.8]} 24... Nxe5 {[%clk 0:01:33.2]}
25. Nc4 {[%clk 0:01:55]} 25... f6 {[%clk 0:01:29]} 26. b3 {[%clk 0:01:53.4]}
26... Re7 {[%clk 0:01:22.2]} 27. Re3 {[%clk 0:01:53.3]} 27... Ra8 {[%clk
0:01:22.4]} 28. Rde1 {[%clk 0:01:48.1]} 28... Rae8 {[%clk 0:01:21.8]} 29. Qe2
{[%clk 0:01:25.5]} 29... Nf7 {[%clk 0:01:12.9]} 30. Qf3 {[%clk 0:01:20.5]} 30...
Kg7 {[%clk 0:01:12.7]} 31. h4 {[%clk 0:01:10.7]} 31... Ne5 {[%clk 0:01:06.8]}
32. Qe2 {[%clk 0:01:10.6]} 32... h5 {[%clk 0:01:03.4]} 33. f3 {[%clk 0:01:03]}
33... Nxc4 {[%clk 0:00:52]} 34. Qxc4 {[%clk 0:01:03.9]} 34... Qd7 {[%clk
0:00:47]} 35. Kf2 {[%clk 0:01:01.7]} 35... Re5 {[%clk 0:00:45.1]} 36. Qa6 {[%clk
0:00:39.3]} 36... Qc7 {[%clk 0:00:42.1]} 37. Qb5 {[%clk 0:00:34.7]} 37... R5e7
{[%clk 0:00:41.7]} 38. R1e2 {[%clk 0:00:28.5]} 38... Rb8 {[%clk 0:00:41.5]} 39.
Qc4 {[%clk 0:00:28.1]} 39... Rf7 {[%clk 0:00:30]} 40. Re1 {[%clk 0:00:21.8]}
40... Re8 {[%clk 0:00:27.9]} 41. R1e2 {[%clk 0:00:21]} 41... Qd8 {[%clk
0:00:26.5]} 42. Qb5 {[%clk 0:00:20.4]} 42... Ree7 {[%clk 0:00:26.5]} 43. g3
{[%clk 0:00:18.4]} 43... Rb7 {[%clk 0:00:26.6]} 44. Qa6 {[%clk 0:00:16.1]} 44...
Rfd7 {[%clk 0:00:16.8]} 45. Kg2 {[%clk 0:00:12.6]} 45... Ra7 {[%clk 0:00:16.8]}
46. Qb5 {[%clk 0:00:11.8]} 46... Rdb7 {[%clk 0:00:16.6]} 47. Qc4 {[%clk
0:00:12.2]} 47... Re7 {[%clk 0:00:15.3]} 48. Qb5 {[%clk 0:00:11.3]} 48... Rab7
{[%clk 0:00:15.5]} 49. Qa6 {[%clk 0:00:11.2]} 49... Rb6 {[%clk 0:00:16.1]} 50.
Qxa5 {[%clk 0:00:09.9]} 50... Qb8 {[%clk 0:00:15.9]} 51. Rc2 {[%clk 0:00:04.3]}
51... Ra7 {[%clk 0:00:15.8]} 52. Rxc5 {[%clk 0:00:04.9]} 52... Rxa5 {[%clk
0:00:15.4]} 53. Rxa5 {[%clk 0:00:05.8]} 53... Rb7 {[%clk 0:00:14.6]} 54. Ra6
{[%clk 0:00:03.7]} 54... Rc7 {[%clk 0:00:13.4]} 55. Ra5 {[%clk 0:00:02.4]} 55...
Rc2+ {[%clk 0:00:12.9]} 56. Kg1 {[%clk 0:00:02.4]} 56... Qb6 {[%clk 0:00:12.6]}
0-1

[Event "Early-Titled-Tuesday-Blitz-May-14-2024"]
[Site "Chess.com"]
[Date "2024.05.14"]
[Round "9"]
[White "Mikhail_Bryakin"]
[Black "Vincent_Vega95"]
[Result "0-1"]
[WhiteElo "2885"]
[BlackElo "2791"]
[TimeControl "180+1"]
[EndTime "9:47:55 PDT"]
[Termination "Vincent_Vega95 won by resignation"]

1. Nf3 {[%clk 0:02:59.3]} 1... Nf6 {[%clk 0:03:00.3]} 2. c4 {[%clk 0:02:57.3]}
2... g6 {[%clk 0:03:00.9]} 3. d4 {[%clk 0:02:53.4]} 3... Bg7 {[%clk 0:03:01.6]}
4. Nc3 {[%clk 0:02:53.8]} 4... O-O {[%clk 0:03:02.5]} 5. Bg5 {[%clk 0:02:51.3]}
5... c5 {[%clk 0:03:02.1]} 6. e3 {[%clk 0:02:47.1]} 6... d6 {[%clk 0:02:50.8]}
7. Be2 {[%clk 0:02:45.2]} 7... Nc6 {[%clk 0:02:50.7]} 8. O-O {[%clk 0:02:45.1]}
8... Bf5 {[%clk 0:02:49.3]} 9. d5 {[%clk 0:02:40.1]} 9... Na5 {[%clk 0:02:49.2]}
10. Nd2 {[%clk 0:02:40.2]} 10... h6 {[%clk 0:02:37.4]} 11. Bh4 {[%clk
0:02:38.9]} 11... e5 {[%clk 0:02:37]} 12. e4 {[%clk 0:02:34.1]} 12... Bd7 {[%clk
0:02:36.1]} 13. Rb1 {[%clk 0:02:22.1]} 13... b6 {[%clk 0:02:32.4]} 14. Re1
{[%clk 0:02:07]} 14... Qb8 {[%clk 0:02:16.1]} 15. Nf1 {[%clk 0:02:06.2]} 15...
h5 {[%clk 0:02:10.4]} 16. Ne3 {[%clk 0:02:04.1]} 16... Nh7 {[%clk 0:02:08.5]}
17. h3 {[%clk 0:01:58.1]} 17... Bh6 {[%clk 0:02:07.7]} 18. Rf1 {[%clk
0:01:32.4]} 18... Kh8 {[%clk 0:01:59]} 19. Bxh5 {[%clk 0:01:21]} 19... gxh5
{[%clk 0:01:57.1]} 20. Qxh5 {[%clk 0:01:21.9]} 20... Bg7 {[%clk 0:01:50.7]} 21.
Be7 {[%clk 0:01:08.6]} 21... Nb7 {[%clk 0:01:44.1]} 22. Nf5 {[%clk 0:01:02]}
22... Rg8 {[%clk 0:01:20]} 23. Qxf7 {[%clk 0:00:54.9]} 23... Qe8 {[%clk
0:01:11.7]} 24. Qxe8 {[%clk 0:00:49.7]} 24... Raxe8 {[%clk 0:01:11]} 25. Bh4
{[%clk 0:00:43.5]} 25... Bf6 {[%clk 0:01:04]} 26. Bxf6+ {[%clk 0:00:28.6]} 26...
Nxf6 {[%clk 0:01:03.9]} 27. f3 {[%clk 0:00:26.6]} 27... Bxf5 {[%clk 0:00:44.9]}
28. exf5 {[%clk 0:00:27.5]} 28... e4 {[%clk 0:00:45.1]} 29. g4 {[%clk
0:00:22.8]} 29... exf3 {[%clk 0:00:38.1]} 30. Rbe1 {[%clk 0:00:20.5]} 30... Nxg4
{[%clk 0:00:15.3]} 31. Rxe8 {[%clk 0:00:13]} 31... Rxe8 {[%clk 0:00:14]} 32.
hxg4 {[%clk 0:00:13.1]} 32... Rg8 {[%clk 0:00:14.8]} 33. Kf2 {[%clk 0:00:04.9]}
33... Rxg4 {[%clk 0:00:15.3]} 34. Kxf3 {[%clk 0:00:03.5]} 34... Rxc4 {[%clk
0:00:16]} 35. Ne4 {[%clk 0:00:04.2]} 35... Kg7 {[%clk 0:00:12.2]} 36. Rg1+
{[%clk 0:00:04.2]} 36... Kf8 {[%clk 0:00:12.1]} 37. Rg6 {[%clk 0:00:04.5]} 37...
Rd4 {[%clk 0:00:11.8]} 38. f6 {[%clk 0:00:02.4]} 38... Rxd5 {[%clk 0:00:11.4]}
39. Ng5 {[%clk 0:00:03.1]} 39... Nd8 {[%clk 0:00:10.1]} 40. Kg4 {[%clk
0:00:02.6]} 40... Re5 {[%clk 0:00:07.9]} 41. Kh4 {[%clk 0:00:02]} 41... Ne6
{[%clk 0:00:06.7]} 42. Nh7+ {[%clk 0:00:01.4]} 42... Kf7 {[%clk 0:00:07]} 43.
Rh6 {[%clk 0:00:02]} 43... Rf5 {[%clk 0:00:06.9]} 44. Kg4 {[%clk 0:00:02]} 44...
Rf4+ {[%clk 0:00:06.7]} 45. Kg3 {[%clk 0:00:02.6]} 45... Rf5 {[%clk 0:00:06]}
46. Kg4 {[%clk 0:00:02.9]} 46... Re5 {[%clk 0:00:06.1]} 47. Rh1 {[%clk
0:00:02.4]} 47... d5 {[%clk 0:00:05.9]} 48. Rf1 {[%clk 0:00:01.4]} 48... d4
{[%clk 0:00:06.3]} 49. Rd1 {[%clk 0:00:01.3]} 49... c4 {[%clk 0:00:06.2]} 50.
Rf1 {[%clk 0:00:01.9]} 50... d3 {[%clk 0:00:06.6]} 51. a4 {[%clk 0:00:01.8]}
51... a6 {[%clk 0:00:06.7]} 52. Rd1 {[%clk 0:00:02.2]} 52... Kg6 {[%clk
0:00:05.7]} 53. Rh1 {[%clk 0:00:02]} 53... d2 {[%clk 0:00:05.6]} 54. Rd1 {[%clk
0:00:01.2]} 54... Rd5 {[%clk 0:00:06]} 55. Rh1 {[%clk 0:00:01.2]} 55... d1=Q+
{[%clk 0:00:05.6]} 56. Rxd1 {[%clk 0:00:01.6]} 56... Rxd1 {[%clk 0:00:06.1]} 57.
f7 {[%clk 0:00:02.5]} 57... Kxf7 {[%clk 0:00:06.1]} 0-1

[Event "Early-Titled-Tuesday-Blitz-May-14-2024"]
[Site "Chess.com"]
[Date "2024.05.14"]
[Round "9"]
[White "english_player_89"]
[Black "Matibar"]
[Result "1/2-1/2"]
[WhiteElo "2622"]
[BlackElo "2775"]
[TimeControl "180+1"]
[EndTime "9:47:55 PDT"]
[Termination "Game drawn by stalemate"]

1. e4 {[%clk 0:03:00.9]} 1... e5 {[%clk 0:02:56.5]} 2. Nf3 {[%clk 0:03:00.7]}
2... d6 {[%clk 0:02:56.8]} 3. Bc4 {[%clk 0:03:00.4]} 3... Be7 {[%clk 0:02:51.5]}
4. O-O {[%clk 0:02:59.3]} 4... Nf6 {[%clk 0:02:48.6]} 5. Nc3 {[%clk 0:02:57.1]}
5... c5 {[%clk 0:02:41.8]} 6. d3 {[%clk 0:02:54]} 6... O-O {[%clk 0:02:41.5]} 7.
a4 {[%clk 0:02:53.6]} 7... h6 {[%clk 0:02:40.7]} 8. Re1 {[%clk 0:02:50.6]} 8...
Nc6 {[%clk 0:02:39.4]} 9. h3 {[%clk 0:02:44.4]} 9... Be6 {[%clk 0:02:37.5]} 10.
Nd5 {[%clk 0:02:39.1]} 10... Nb4 {[%clk 0:02:33]} 11. Nxe7+ {[%clk 0:02:33.5]}
11... Qxe7 {[%clk 0:02:32.5]} 12. Bxe6 {[%clk 0:02:28]} 12... fxe6 {[%clk
0:02:32]} 13. c3 {[%clk 0:02:28]} 13... Nc6 {[%clk 0:02:29.7]} 14. d4 {[%clk
0:02:26.3]} 14... Rad8 {[%clk 0:01:53.8]} 15. dxc5 {[%clk 0:02:21.9]} 15... dxc5
{[%clk 0:01:53.6]} 16. Qe2 {[%clk 0:02:20.9]} 16... Qf7 {[%clk 0:01:42.8]} 17.
Qc4 {[%clk 0:02:09]} 17... Nh5 {[%clk 0:01:35.6]} 18. Be3 {[%clk 0:01:44.8]}
18... b6 {[%clk 0:01:27.5]} 19. Qb5 {[%clk 0:01:37.6]} 19... Qc7 {[%clk
0:01:14.6]} 20. Red1 {[%clk 0:01:06.5]} 20... Nf4 {[%clk 0:01:12.7]} 21. Rxd8
{[%clk 0:00:52]} 21... Rxd8 {[%clk 0:01:13.6]} 22. a5 {[%clk 0:00:26.8]} 22...
Ne7 {[%clk 0:01:11.2]} 23. axb6 {[%clk 0:00:25.5]} 23... axb6 {[%clk 0:01:11.3]}
24. b4 {[%clk 0:00:21.2]} 24... Neg6 {[%clk 0:00:54.2]} 25. bxc5 {[%clk
0:00:20.4]} 25... bxc5 {[%clk 0:00:54.8]} 26. Qxc5 {[%clk 0:00:17.1]} 26... Qf7
{[%clk 0:00:49.8]} 27. Nxe5 {[%clk 0:00:14.6]} 27... Qf6 {[%clk 0:00:43.1]} 28.
Nxg6 {[%clk 0:00:12.4]} 28... Nxg6 {[%clk 0:00:44]} 29. Bd4 {[%clk 0:00:11.8]}
29... e5 {[%clk 0:00:28.5]} 30. Be3 {[%clk 0:00:12.1]} 30... Rd7 {[%clk
0:00:27.7]} 31. Qc8+ {[%clk 0:00:11.2]} 31... Rd8 {[%clk 0:00:26.6]} 32. Qc4+
{[%clk 0:00:11.8]} 32... Kh7 {[%clk 0:00:26.8]} 33. Ra7 {[%clk 0:00:11.5]} 33...
Nh4 {[%clk 0:00:19.7]} 34. Qf7 {[%clk 0:00:08.4]} 34... Qxf7 {[%clk 0:00:18]}
35. Rxf7 {[%clk 0:00:09.3]} 35... Rc8 {[%clk 0:00:18.1]} 36. Re7 {[%clk
0:00:06.8]} 36... Ng6 {[%clk 0:00:17.8]} 37. Re6 {[%clk 0:00:03.7]} 37... Rxc3
{[%clk 0:00:18.3]} 38. g3 {[%clk 0:00:03.7]} 38... Rc4 {[%clk 0:00:18.2]} 39. h4
{[%clk 0:00:02.6]} 39... h5 {[%clk 0:00:17.7]} 40. f3 {[%clk 0:00:02.2]} 40...
Rc3 {[%clk 0:00:17.6]} 41. Bg5 {[%clk 0:00:02.6]} 41... Rc2 {[%clk 0:00:18.5]}
42. f4 {[%clk 0:00:02.5]} 42... exf4 {[%clk 0:00:14]} 43. gxf4 {[%clk
0:00:03.4]} 43... Nf8 {[%clk 0:00:13.6]} 44. f5 {[%clk 0:00:02.9]} 44... Nxe6
{[%clk 0:00:13.4]} 45. fxe6 {[%clk 0:00:03.8]} 45... Kg6 {[%clk 0:00:13.6]} 46.
e7 {[%clk 0:00:04.7]} 46... Kf7 {[%clk 0:00:13.2]} 47. e5 {[%clk 0:00:04]} 47...
Rc3 {[%clk 0:00:14.1]} 48. e6+ {[%clk 0:00:04.1]} 48... Ke8 {[%clk 0:00:14.4]}
49. Kf1 {[%clk 0:00:04.4]} 49... Rc6 {[%clk 0:00:14.8]} 50. Kf2 {[%clk
0:00:05.3]} 50... Rxe6 {[%clk 0:00:15.5]} 51. Kf3 {[%clk 0:00:06.2]} 51... Rxe7
{[%clk 0:00:14]} 52. Bxe7 {[%clk 0:00:06.6]} 52... Kxe7 {[%clk 0:00:14.9]} 53.
Kf4 {[%clk 0:00:07.2]} 53... Kf6 {[%clk 0:00:14.9]} 54. Ke4 {[%clk 0:00:07.3]}
54... Ke6 {[%clk 0:00:14.6]} 55. Kf4 {[%clk 0:00:07.9]} 55... g6 {[%clk
0:00:14.7]} 56. Ke4 {[%clk 0:00:08.5]} 56... Kf7 {[%clk 0:00:14.3]} 57. Kf4
{[%clk 0:00:09.4]} 57... Kf6 {[%clk 0:00:14.4]} 58. Ke4 {[%clk 0:00:10]} 58...
Ke6 {[%clk 0:00:14.6]} 59. Kf4 {[%clk 0:00:10.7]} 59... Ke7 {[%clk 0:00:14.6]}
60. Kg5 {[%clk 0:00:10.9]} 60... Kf7 {[%clk 0:00:14.8]} 61. Kf4 {[%clk
0:00:11.4]} 61... Kf6 {[%clk 0:00:10.8]} 62. Ke4 {[%clk 0:00:11.8]} 62... g5
{[%clk 0:00:10.8]} 63. hxg5+ {[%clk 0:00:12]} 63... Kxg5 {[%clk 0:00:11.7]} 64.
Kf3 {[%clk 0:00:12.5]} 64... Kh4 {[%clk 0:00:11.3]} 65. Kg2 {[%clk 0:00:13.4]}
65... Kg4 {[%clk 0:00:11.7]} 66. Kh1 {[%clk 0:00:14.3]} 66... h4 {[%clk
0:00:12.6]} 67. Kg1 {[%clk 0:00:14.7]} 67... h3 {[%clk 0:00:13.5]} 68. Kh1
{[%clk 0:00:15.6]} 68... Kg3 {[%clk 0:00:14.2]} 69. Kg1 {[%clk 0:00:16.5]} 69...
h2+ {[%clk 0:00:14.8]} 70. Kh1 {[%clk 0:00:17.4]} 70... Kh3 {[%clk 0:00:15.5]}
1/2-1/2

[Event "Early-Titled-Tuesday-Blitz-May-14-2024"]
[Site "Chess.com"]
[Date "2024.05.14"]
[Round "9"]
[White "Abund"]
[Black "CristianS27"]
[Result "1-0"]
[WhiteElo "2788"]
[BlackElo "2541"]
[TimeControl "180+1"]
[EndTime "9:47:58 PDT"]
[Termination "Abund won on time"]

1. e4 {[%clk 0:03:00.9]} 1... e5 {[%clk 0:02:58.1]} 2. Nc3 {[%clk 0:03:01.7]}
2... Nf6 {[%clk 0:02:58.2]} 3. Bc4 {[%clk 0:03:01.5]} 3... Nc6 {[%clk
0:02:57.5]} 4. d3 {[%clk 0:02:58.3]} 4... Bc5 {[%clk 0:02:56.7]} 5. Nge2 {[%clk
0:02:58.1]} 5... Ng4 {[%clk 0:02:55.3]} 6. d4 {[%clk 0:02:26.3]} 6... exd4
{[%clk 0:02:48.9]} 7. Na4 {[%clk 0:02:22.1]} 7... d6 {[%clk 0:02:46.9]} 8. Bf4
{[%clk 0:01:55.1]} 8... d3 {[%clk 0:02:30.3]} 9. Nxc5 {[%clk 0:01:54.4]} 9...
dxe2 {[%clk 0:02:28.5]} 10. Bxe2 {[%clk 0:01:54.3]} 10... Nf6 {[%clk 0:01:41.4]}
11. Nd3 {[%clk 0:01:34.3]} 11... Nxe4 {[%clk 0:01:40.8]} 12. Bf3 {[%clk
0:01:32]} 12... O-O {[%clk 0:01:21.9]} 13. O-O {[%clk 0:01:11.9]} 13... Bf5
{[%clk 0:01:16.7]} 14. Re1 {[%clk 0:01:06.2]} 14... Re8 {[%clk 0:01:15.4]} 15.
c3 {[%clk 0:01:05.2]} 15... Qd7 {[%clk 0:01:08.6]} 16. Qb3 {[%clk 0:01:04]}
16... b6 {[%clk 0:00:51.7]} 17. Rad1 {[%clk 0:00:48.7]} 17... Rad8 {[%clk
0:00:49.4]} 18. Qd5 {[%clk 0:00:44.5]} 18... Ne7 {[%clk 0:00:45.8]} 19. Qd4
{[%clk 0:00:43.9]} 19... Nc6 {[%clk 0:00:40.5]} 20. Qa4 {[%clk 0:00:37.8]} 20...
Ne5 {[%clk 0:00:17.2]} 21. Qxd7 {[%clk 0:00:35.1]} 21... Nxd7 {[%clk 0:00:18.1]}
22. Nb4 {[%clk 0:00:30.6]} 22... Nef6 {[%clk 0:00:06.2]} 23. Nc6 {[%clk
0:00:28.1]} 23... Rc8 {[%clk 0:00:03.6]} 24. Ne7+ {[%clk 0:00:20]} 24... Rxe7
{[%clk 0:00:03.4]} 25. Rxe7 {[%clk 0:00:20.9]} 25... h6 {[%clk 0:00:02.3]} 26.
Ree1 {[%clk 0:00:16.8]} 26... Nc5 {[%clk 0:00:02.5]} 27. h3 {[%clk 0:00:16.3]}
27... Nd3 {[%clk 0:00:02.7]} 28. Be3 {[%clk 0:00:08.4]} 28... Nxe1 {[%clk
0:00:02.8]} 29. Rxe1 {[%clk 0:00:09.3]} 29... Re8 {[%clk 0:00:03.3]} 30. Bc6
{[%clk 0:00:09.2]} 30... Re7 {[%clk 0:00:02.6]} 31. Rd1 {[%clk 0:00:08]} 31...
Be4 {[%clk 0:00:03]} 32. Bb5 {[%clk 0:00:08.4]} 32... c6 {[%clk 0:00:02.6]} 33.
Be2 {[%clk 0:00:07.9]} 33... d5 {[%clk 0:00:03]} 34. b4 {[%clk 0:00:07.3]} 34...
Bg6 {[%clk 0:00:02.9]} 35. a4 {[%clk 0:00:07.2]} 35... Kh7 {[%clk 0:00:02.2]}
36. a5 {[%clk 0:00:07.4]} 36... Ne4 {[%clk 0:00:02.3]} 37. Rc1 {[%clk
0:00:06.3]} 37... bxa5 {[%clk 0:00:02.2]} 38. bxa5 {[%clk 0:00:06.9]} 38... Rb7
{[%clk 0:00:02.5]} 39. f3 {[%clk 0:00:06.7]} 39... Nd6 {[%clk 0:00:02]} 40. Ba6
{[%clk 0:00:06.7]} 40... Re7 {[%clk 0:00:02]} 41. Bc5 {[%clk 0:00:07.2]} 41...
Rd7 {[%clk 0:00:02.7]} 42. Re1 {[%clk 0:00:06.9]} 42... Nb5 {[%clk 0:00:02.3]}
43. Rc1 {[%clk 0:00:05.6]} 43... Rd8 {[%clk 0:00:01.7]} 44. Bb7 {[%clk
0:00:05.7]} 44... a6 {[%clk 0:00:00.8]} 45. Bxa6 {[%clk 0:00:05.6]} 45... Nc7
{[%clk 0:00:01.5]} 46. Bb7 {[%clk 0:00:06]} 46... Ne6 {[%clk 0:00:02.1]} 47. Bb6
{[%clk 0:00:06]} 47... Rb8 {[%clk 0:00:01.7]} 48. Bxc6 {[%clk 0:00:06.4]} 48...
d4 {[%clk 0:00:02.3]} 49. cxd4 {[%clk 0:00:06.3]} 49... Rc8 {[%clk 0:00:02]} 50.
d5 {[%clk 0:00:06.1]} 50... Nd8 {[%clk 0:00:01.7]} 51. a6 {[%clk 0:00:05.7]}
51... Nxc6 {[%clk 0:00:01.7]} 52. dxc6 {[%clk 0:00:05.9]} 52... Bd3 {[%clk
0:00:00.9]} 53. a7 {[%clk 0:00:06.4]} 53... Bb5 {[%clk 0:00:01.2]} 54. Bc7
{[%clk 0:00:06.6]} 1-0

[Event "Early-Titled-Tuesday-Blitz-May-14-2024"]
[Site "Chess.com"]
[Date "2024.05.14"]
[Round "9"]
[White "AlphaGoosee"]
[Black "cukus"]
[Result "1-0"]
[WhiteElo "2612"]
[BlackElo "2363"]
[TimeControl "180+1"]
[EndTime "9:47:58 PDT"]
[Termination "AlphaGoosee won on time"]

1. e4 {[%clk 0:03:00.9]} 1... c5 {[%clk 0:02:59.3]} 2. Nf3 {[%clk 0:02:59.8]}
2... e6 {[%clk 0:02:59.8]} 3. d4 {[%clk 0:03:00.1]} 3... cxd4 {[%clk 0:03:00.5]}
4. Nxd4 {[%clk 0:03:01]} 4... Nf6 {[%clk 0:03:00.6]} 5. Nc3 {[%clk 0:03:01.5]}
5... Nc6 {[%clk 0:03:01.2]} 6. a3 {[%clk 0:03:02.1]} 6... Be7 {[%clk 0:02:59.8]}
7. Be3 {[%clk 0:03:01.9]} 7... O-O {[%clk 0:02:54.5]} 8. Qe2 {[%clk 0:03:01.5]}
8... d5 {[%clk 0:02:45.6]} 9. exd5 {[%clk 0:03:01.4]} 9... Nxd5 {[%clk
0:02:41.8]} 10. Nxd5 {[%clk 0:03:01.4]} 10... Qxd5 {[%clk 0:02:39.8]} 11. Rd1
{[%clk 0:03:00.6]} 11... Qa5+ {[%clk 0:02:35.9]} 12. c3 {[%clk 0:02:57.5]} 12...
Nxd4 {[%clk 0:02:15.2]} 13. Bxd4 {[%clk 0:02:58.4]} 13... Re8 {[%clk 0:02:05]}
14. Qb5 {[%clk 0:02:51.7]} 14... Qxb5 {[%clk 0:01:57.2]} 15. Bxb5 {[%clk
0:02:52.6]} 15... Rf8 {[%clk 0:01:57.9]} 16. Ke2 {[%clk 0:02:41.4]} 16... a6
{[%clk 0:01:56.2]} 17. Bd3 {[%clk 0:02:38.2]} 17... Bd7 {[%clk 0:01:52.6]} 18.
Be4 {[%clk 0:02:32.4]} 18... Bc6 {[%clk 0:01:51]} 19. Bxc6 {[%clk 0:02:22.2]}
19... bxc6 {[%clk 0:01:51.9]} 20. Kd3 {[%clk 0:02:21.5]} 20... Rfd8 {[%clk
0:01:44.3]} 21. Kc4 {[%clk 0:02:20.6]} 21... Rd5 {[%clk 0:01:42.4]} 22. b4
{[%clk 0:02:16.2]} 22... f6 {[%clk 0:01:33.1]} 23. f4 {[%clk 0:02:15]} 23... Bd6
{[%clk 0:01:30.9]} 24. g3 {[%clk 0:02:12.1]} 24... Kf7 {[%clk 0:01:23.5]} 25.
Rhe1 {[%clk 0:02:11.4]} 25... Re8 {[%clk 0:01:21.7]} 26. a4 {[%clk 0:02:09.4]}
26... e5 {[%clk 0:01:17.2]} 27. fxe5 {[%clk 0:02:07.7]} 27... Bxe5 {[%clk
0:01:15.8]} 28. Bc5 {[%clk 0:01:55.7]} 28... Red8 {[%clk 0:01:09.8]} 29. Rxd5
{[%clk 0:01:55.2]} 29... Rxd5 {[%clk 0:01:08]} 30. a5 {[%clk 0:01:51.8]} 30...
Rd2 {[%clk 0:01:02.4]} 31. Rh1 {[%clk 0:01:44.6]} 31... Ke6 {[%clk 0:00:57]} 32.
g4 {[%clk 0:01:43.3]} 32... Rg2 {[%clk 0:00:50.4]} 33. h3 {[%clk 0:01:40.4]}
33... Rd2 {[%clk 0:00:49.1]} 34. Re1 {[%clk 0:01:38.3]} 34... Kf7 {[%clk
0:00:38.3]} 35. Re3 {[%clk 0:01:35.9]} 35... Kg6 {[%clk 0:00:33.8]} 36. Bd4
{[%clk 0:01:26.3]} 36... Bxd4 {[%clk 0:00:24.3]} 37. cxd4 {[%clk 0:01:27.2]}
37... Rc2+ {[%clk 0:00:24.1]} 38. Rc3 {[%clk 0:01:27.2]} 38... Rxc3+ {[%clk
0:00:09.3]} 39. Kxc3 {[%clk 0:01:27.7]} 39... Kf7 {[%clk 0:00:09.8]} 40. Kc4
{[%clk 0:00:24.5]} 40... Ke6 {[%clk 0:00:09.3]} 41. Kc5 {[%clk 0:00:21.5]} 41...
Kd7 {[%clk 0:00:09.7]} 42. Kb6 {[%clk 0:00:19]} 42... g6 {[%clk 0:00:10.3]} 43.
Kxa6 {[%clk 0:00:18.4]} 43... f5 {[%clk 0:00:02.2]} 44. gxf5 {[%clk 0:00:18.6]}
44... gxf5 {[%clk 0:00:02.6]} 45. Kb7 {[%clk 0:00:19.5]} 45... f4 {[%clk
0:00:03.1]} 46. a6 {[%clk 0:00:20.4]} 46... f3 {[%clk 0:00:03.8]} 47. a7 {[%clk
0:00:21]} 47... f2 {[%clk 0:00:04.5]} 48. a8=Q {[%clk 0:00:21.3]} 48... f1=Q
{[%clk 0:00:05]} 49. Qc8+ {[%clk 0:00:20.8]} 49... Ke7 {[%clk 0:00:03.1]} 50.
Qc7+ {[%clk 0:00:20.2]} 50... Kf6 {[%clk 0:00:01.8]} 51. Qxc6+ {[%clk
0:00:19.4]} 51... Kf5 {[%clk 0:00:02.5]} 52. d5 {[%clk 0:00:17.9]} 52... Qb1
{[%clk 0:00:01.7]} 53. b5 {[%clk 0:00:18]} 53... Ke4 {[%clk 0:00:01.6]} 54. d6+
{[%clk 0:00:18]} 54... Ke3 {[%clk 0:00:01.8]} 55. d7 {[%clk 0:00:17.8]} 1-0